[Event "Championnat du monde jeunes U12F"]
[Date "2024.11.15"]
[White "Sunea, Sara Maria"]
[Black "Anu, Bayart-Uchral"]
[WhiteElo "1823"]
[BlackElo "1624"]
[Round "1.14"]
[Result "1/2-1/2"]
[TimeControl "5400+30"]

1. d4 {[%clk 1:30:53]} 1... Nf6 {[%clk 1:30:47]} 2. Nf3 {[%clk 1:31:13]} 2... e6
{[%clk 1:30:57]} 3. e3 {[%clk 1:31:35]} 3... c5 {[%clk 1:31:11]} 4. Bd3 {[%clk
1:31:48]} 4... d5 {[%clk 1:30:09]} 5. O-O {[%clk 1:32:09]} 5... Nc6 {[%clk
1:29:02]} 6. b3 {[%clk 1:32:23]} 6... Be7 {[%clk 1:28:30]} 7. Bb2 {[%clk
1:32:39]} 7... O-O {[%clk 1:26:27]} 8. Nbd2 {[%clk 1:32:59]} 8... b6 {[%clk
1:23:45]} 9. a3 {[%clk 1:31:45]} 9... Qc7 {[%clk 1:21:11]} 10. Ne5 {[%clk
1:31:08]} 10... Nd7 {[%clk 1:14:48]} 11. f4 {[%clk 1:20:21]} 11... Bf6 {[%clk
0:59:33]} 12. Rf3 {[%clk 1:11:29]} 12... g6 {[%clk 0:58:34]} 13. Rg3 {[%clk
1:07:11]} 13... Ne7 {[%clk 0:50:45]} 14. Qf3 {[%clk 0:56:11]} 14... Bb7 {[%clk
0:38:35]} 15. Rf1 {[%clk 0:49:25]} 15... Bg7 {[%clk 0:13:31]} 16. Qe2 {[%clk
0:45:56]} 16... Nf5 {[%clk 0:11:09]} 17. Rh3 {[%clk 0:45:37]} 17... Nxe5 {[%clk
0:10:22]} 18. fxe5 {[%clk 0:44:11]} 18... f6 {[%clk 0:10:29]} 19. exf6 {[%clk
0:36:55]} 19... Bxf6 {[%clk 0:10:44]} 20. Nf3 {[%clk 0:36:26]} 20... Qe7 {[%clk
0:07:55]} 21. Ne5 {[%clk 0:30:56]} 21... Bxe5 {[%clk 0:07:04]} 22. dxe5 {[%clk
0:31:20]} 22... Rad8 {[%clk 0:05:23]} 23. e4 {[%clk 0:27:30]} 23... dxe4 {[%clk
0:04:02]} 24. Bxe4 {[%clk 0:26:21]} 24... Bxe4 {[%clk 0:03:36]} 25. Qxe4 {[%clk
0:26:49]} 25... Nd4 {[%clk 0:03:03]} 26. Rxf8+ {[%clk 0:24:37]} 26... Qxf8
{[%clk 0:03:19]} 27. Rd3 {[%clk 0:22:41]} 27... Nf5 {[%clk 0:01:00]} 28. Qc6
{[%clk 0:20:50]} 28... Ng7 {[%clk 0:01:22]} 29. Rd6 Qe7 {[%clk 0:00:56]} 30. g3
{[%clk 0:11:34]} 30... Qg5 {[%clk 0:00:52]} 31. Rxd8+ {[%clk 0:08:59]} 31...
Qxd8 {[%clk 0:01:20]} 32. Qd6 {[%clk 0:09:19]} 32... Qe8 {[%clk 0:01:21]} 33. g4
{[%clk 0:09:16]} 33... Qf7 {[%clk 0:01:05]} 34. Bc1 {[%clk 0:05:12]} 34... Qf3
{[%clk 0:00:45]} 35. Qd8+ {[%clk 0:03:18]} 35... Kf7 {[%clk 0:01:11]} 36. Qd7+
{[%clk 0:02:43]} 36... Kg8 {[%clk 0:01:22]} 37. Qd8+ {[%clk 0:03:05]} 37... Kf7
{[%clk 0:01:28]} 38. Qc7+ {[%clk 0:03:14]} 38... Kg8 {[%clk 0:01:53]} 39. Qb8+
{[%clk 0:03:27]} 39... Kf7 {[%clk 0:02:17]} 40. Qxa7+ {[%clk 0:03:53]} 40... Kg8
{[%clk 0:02:42]} 41. Qb8+ {[%clk 0:03:50]} 41... Kf7 {[%clk 0:03:06]} 42. Qc7+
{[%clk 0:04:00]} 42... Kg8 {[%clk 0:03:32]} 43. Qd8+ {[%clk 0:02:26]} 43... Kf7
{[%clk 0:03:54]} 44. Qf6+ {[%clk 0:01:08]} 44... Qxf6 {[%clk 0:04:19]} 45. exf6
{[%clk 0:01:35]} 45... Kxf6 {[%clk 0:04:43]} 46. Kf2 {[%clk 0:00:53]} 46... e5
{[%clk 0:04:55]} 47. c3 {[%clk 0:00:48]} 47... Ne8 {[%clk 0:04:51]} 48. Kf3
{[%clk 0:00:45]} 48... Nd6 {[%clk 0:04:36]} 49. a4 {[%clk 0:00:43]} 49... Ke6
{[%clk 0:04:13]} 50. Be3 {[%clk 0:00:36]} 50... Nb7 {[%clk 0:01:48]} 51. Ke4
{[%clk 0:00:42]} 51... Nd6+ {[%clk 0:01:46]} 52. Kd3 {[%clk 0:00:53]} 52... Kd5
{[%clk 0:00:47]} 53. c4+ {[%clk 0:00:35]} 53... Kc6 {[%clk 0:01:01]} 54. Bg5
{[%clk 0:00:50]} 54... Kd7 {[%clk 0:00:40]} 55. Bh4 {[%clk 0:00:51]} 55... Nb7
{[%clk 0:00:44]} 56. Bg3 {[%clk 0:00:34]} 56... Ke6 {[%clk 0:01:09]} 57. Ke4
{[%clk 0:01:01]} 57... Nd6+ {[%clk 0:01:35]} 58. Kd3 {[%clk 0:01:00]} 58... Nb7
{[%clk 0:01:46]} 59. Ke4 {[%clk 0:01:16]} 59... Nd6+ {[%clk 0:02:02]} 60. Ke3
{[%clk 0:01:01]} 60... Nb7 {[%clk 0:02:25]} 61. Ke4 {[%clk 0:00:57]} 61... Nd6+
{[%clk 0:02:34]} 1/2-1/2

[Variant "Standard"]
[Site "Europe Echecs"]

[Event "Championnat du monde jeunes U12F"]
[Date "2024.11.15"]
[White "Stepankova, Linda"]
[Black "Xu, Luna Yuexiu"]
[WhiteElo "1624"]
[BlackElo "1821"]
[Round "1.15"]
[Result "0-1"]
[TimeControl "5400+30"]

1. e4 {[%clk 1:30:56]} 1... c5 {[%clk 1:30:52]} 2. c4 {[%clk 1:31:12]} 2... Nc6
{[%clk 1:31:15]} 3. Nc3 {[%clk 1:31:13]} 3... d6 {[%clk 1:31:35]} 4. d3 {[%clk
1:31:26]} 4... g6 {[%clk 1:31:53]} 5. g3 {[%clk 1:27:32]} 5... Bg7 {[%clk
1:32:15]} 6. Bg2 {[%clk 1:27:39]} 6... e6 {[%clk 1:32:38]} 7. Nge2 {[%clk
1:27:18]} 7... Nge7 {[%clk 1:32:58]} 8. O-O {[%clk 1:27:28]} 8... O-O {[%clk
1:33:19]} 9. Be3 {[%clk 1:26:36]} 9... Nd4 {[%clk 1:33:35]} 10. Qd2 {[%clk
1:26:04]} 10... b6 {[%clk 1:24:02]} 11. Bh6 {[%clk 1:20:39]} 11... Bb7 {[%clk
1:23:00]} 12. Bxg7 {[%clk 1:15:33]} 12... Kxg7 {[%clk 1:23:28]} 13. f4 f5 {[%clk
1:23:33]} 14. Rab1 {[%clk 1:00:57]} 14... a5 {[%clk 1:21:32]} 15. b3 {[%clk
0:54:48]} 15... Qd7 {[%clk 1:08:06]} 16. Qb2 {[%clk 0:51:14]} 16... e5 {[%clk
1:07:04]} 17. Nd5 {[%clk 0:44:44]} 17... Nxd5 {[%clk 1:05:57]} 18. exd5 {[%clk
0:39:36]} 18... Nxe2+ {[%clk 1:00:51]} 19. Qxe2 {[%clk 0:39:40]} 19... exf4
{[%clk 1:01:10]} 20. Rxf4 {[%clk 0:28:59]} 20... Rae8 {[%clk 1:01:13]} 21. Qd2
{[%clk 0:28:53]} 21... Qe7 {[%clk 0:59:01]} 22. Kf1 {[%clk 0:18:39]} 22... Qe3
{[%clk 0:55:19]} 23. Qb2+ {[%clk 0:15:55]} 23... Kg8 {[%clk 0:55:25]} 24. Rf3
{[%clk 0:15:21]} 24... Qh6 {[%clk 0:53:55]} 25. Qc1 {[%clk 0:08:55]} 25... Qxh2
{[%clk 0:53:01]} 26. Qf4 {[%clk 0:04:30]} 26... Re5 {[%clk 0:52:19]} 27. d4
{[%clk 0:02:23]} 27... cxd4 {[%clk 0:51:52]} 28. Qxd4 {[%clk 0:02:44]} 28... b5
{[%clk 0:52:05]} 29. Qb6 Bc8 {[%clk 0:51:02]} 30. Qxd6 {[%clk 0:01:23]} 30...
Re2 {[%clk 0:50:38]} 31. Rf2 {[%clk 0:00:54]} 31... Rxf2+ {[%clk 0:51:01]} 32.
Kxf2 {[%clk 0:01:15]} 32... f4 {[%clk 0:51:24]} 33. g4 {[%clk 0:00:34]} 33...
Qg3+ {[%clk 0:51:44]} 34. Kf1 {[%clk 0:00:39]} 34... Qd3+ {[%clk 0:52:07]} 35.
Kf2 {[%clk 0:00:56]} 35... Qe3+ {[%clk 0:51:59]} 36. Kf1 {[%clk 0:01:12]} 36...
f3 {[%clk 0:52:18]} 37. Bxf3 Rxf3+ {[%clk 0:52:40]} 38. Kg2 {[%clk 0:00:57]}
38... Qf2+ {[%clk 0:53:05]} 39. Kh1 {[%clk 0:01:17]} 39... Rh3+ {[%clk 0:53:30]}
0-1

[Variant "Standard"]
[Site "Europe Echecs"]

[Event "Championnat du monde jeunes U12F"]
[Date "2024.11.15"]
[White "Abak, Tuana"]
[Black "Siskou, Evangelia"]
[WhiteElo "1806"]
[BlackElo "1884"]
[Round "1.16"]
[Result "1-0"]
[TimeControl "5400+30"]

1. e4 {[%clk 1:30:58]} 1... e5 {[%clk 1:30:54]} 2. Nf3 {[%clk 1:31:23]} 2... Nc6
{[%clk 1:31:20]} 3. d4 {[%clk 1:31:48]} 3... exd4 {[%clk 1:31:44]} 4. Bc4 {[%clk
1:32:14]} 4... Nf6 {[%clk 1:30:25]} 5. e5 {[%clk 1:32:37]} 5... Ne4 6. Qe2
{[%clk 1:32:53]} 6... Nc5 {[%clk 1:28:25]} 7. O-O {[%clk 1:33:07]} 7... Be7
{[%clk 1:27:18]} 8. Rd1 {[%clk 1:33:19]} 8... Ne6 {[%clk 1:22:22]} 9. Nbd2
{[%clk 1:26:24]} 9... O-O {[%clk 1:22:16]} 10. Nb3 {[%clk 1:26:37]} 10... d6
{[%clk 1:15:26]} 11. Bxe6 {[%clk 1:20:39]} 11... Bxe6 {[%clk 1:14:00]} 12. Nbxd4
{[%clk 1:21:04]} 12... Qd7 {[%clk 1:02:54]} 13. Bf4 {[%clk 1:15:16]} 13... Bg4
{[%clk 0:56:24]} 14. Nxc6 {[%clk 1:10:37]} 14... Qxc6 {[%clk 0:56:25]} 15. Rd3
{[%clk 1:10:44]} 15... Rfe8 {[%clk 0:56:11]} 16. Rc3 {[%clk 0:59:18]} 16... Qd7
{[%clk 0:52:43]} 17. Qc4 {[%clk 0:52:45]} 17... Rac8 {[%clk 0:50:15]} 18. Rd1
{[%clk 0:48:34]} 18... Red8 {[%clk 0:46:04]} 19. Bg3 {[%clk 0:47:05]} 19... Qe6
{[%clk 0:41:46]} 20. Qxe6 {[%clk 0:46:28]} 20... Bxe6 {[%clk 0:41:55]} 21. exd6
{[%clk 0:46:27]} 21... Bxd6 {[%clk 0:41:59]} 22. Bxd6 {[%clk 0:45:34]} 22...
Rxd6 {[%clk 0:41:51]} 23. Rxd6 {[%clk 0:45:12]} 23... cxd6 {[%clk 0:42:09]} 24.
Rxc8+ {[%clk 0:45:39]} 24... Bxc8 {[%clk 0:42:32]} 25. Nd4 {[%clk 0:46:06]}
25... a6 {[%clk 0:42:36]} 26. Kf1 {[%clk 0:46:27]} 26... Kf8 {[%clk 0:43:03]}
27. Ke2 {[%clk 0:46:54]} 27... Ke7 {[%clk 0:43:26]} 28. Ke3 {[%clk 0:47:18]}
28... d5 {[%clk 0:42:12]} 29. Ne2 {[%clk 0:46:53]} 29... Bf5 {[%clk 0:42:24]}
30. c3 {[%clk 0:46:39]} 30... g6 {[%clk 0:42:26]} 31. Kd4 {[%clk 0:46:23]} 31...
Kd6 {[%clk 0:42:11]} 32. b4 {[%clk 0:46:24]} 32... Bb1 {[%clk 0:42:07]} 33. a3
{[%clk 0:45:34]} 33... b6 {[%clk 0:42:12]} 34. Nf4 {[%clk 0:45:46]} 34... Ba2
{[%clk 0:42:15]} 35. h4 {[%clk 0:44:51]} 35... h6 {[%clk 0:42:05]} 36. g4 {[%clk
0:44:05]} 36... Bb3 {[%clk 0:40:06]} 37. h5 {[%clk 0:43:26]} 37... g5 {[%clk
0:39:19]} 38. Ng2 {[%clk 0:43:38]} 38... Bc2 {[%clk 0:38:27]} 39. Ne3 {[%clk
0:43:29]} 39... Be4 {[%clk 0:23:59]} 40. c4 {[%clk 0:43:23]} 40... f6 {[%clk
0:20:45]} 41. cxd5 {[%clk 0:43:43]} 41... Bb1 {[%clk 0:20:41]} 42. Nc4+ {[%clk
0:43:21]} 42... Kc7 {[%clk 0:20:55]} 43. d6+ {[%clk 0:43:33]} 43... Kd7 {[%clk
0:21:09]} 44. Nxb6+ {[%clk 0:43:42]} 44... Kxd6 {[%clk 0:21:22]} 45. Nc4+ {[%clk
0:43:29]} 45... Ke6 {[%clk 0:20:35]} 46. Nd2 {[%clk 0:43:44]} 46... Bc2 {[%clk
0:20:49]} 47. f3 {[%clk 0:41:19]} 47... f5 {[%clk 0:20:52]} 48. Nc4 {[%clk
0:40:41]} 48... Bd1 {[%clk 0:20:51]} 49. gxf5+ {[%clk 0:41:06]} 49... Kxf5
{[%clk 0:21:08]} 50. Ne3+ {[%clk 0:41:29]} 50... Kf4 {[%clk 0:21:27]} 51. Nxd1
{[%clk 0:41:55]} 51... Kxf3 52. a4 {[%clk 0:42:22]} 52... g4 {[%clk 0:21:53]}
53. b5 {[%clk 0:42:47]} 53... g3 {[%clk 0:21:44]} 54. Ne3 {[%clk 0:43:12]} 54...
axb5 {[%clk 0:21:54]} 55. axb5 {[%clk 0:43:36]} 55... g2 {[%clk 0:22:15]} 56.
Nxg2 {[%clk 0:44:02]} 56... Kxg2 {[%clk 0:22:35]} 57. b6 {[%clk 0:44:29]} 57...
Kg3 {[%clk 0:22:57]} 58. b7 {[%clk 0:44:55]} 58... Kg4 {[%clk 0:23:18]} 59. b8=Q
{[%clk 0:45:19]} 59... Kxh5 {[%clk 0:23:39]} 60. Qg8 {[%clk 0:45:40]} 60... Kh4
{[%clk 0:23:53]} 61. Ke4 {[%clk 0:45:56]} 61... h5 {[%clk 0:24:21]} 62. Kf4
{[%clk 0:46:17]} 62... Kh3 {[%clk 0:24:50]} 63. Qg3# {[%clk 0:46:45]} 1-0

[Variant "Standard"]
[Site "Europe Echecs"]

[Event "Championnat du monde jeunes U12F"]
[Date "2024.11.15"]
[White "Budhram, Kaylee"]
[Black "Illes-Nagy, Nora"]
[WhiteElo "1614"]
[BlackElo "1803"]
[Round "1.17"]
[Result "0-1"]
[TimeControl "5400+30"]

1. d4 {[%clk 1:30:57]} 1... d5 {[%clk 1:30:53]} 2. c4 {[%clk 1:31:22]} 2... c6
{[%clk 1:31:17]} 3. Nf3 {[%clk 1:31:44]} 3... Nf6 {[%clk 1:31:38]} 4. e3 {[%clk
1:31:58]} 4... Bg4 {[%clk 1:31:57]} 5. h3 {[%clk 1:32:12]} 5... Bh5 {[%clk
1:32:19]} 6. Be2 {[%clk 1:30:00]} 6... e6 {[%clk 1:31:56]} 7. O-O {[%clk
1:29:22]} 7... Nbd7 {[%clk 1:31:27]} 8. Nc3 {[%clk 1:27:49]} 8... Bd6 {[%clk
1:29:32]} 9. b3 {[%clk 1:24:35]} 9... O-O {[%clk 1:27:35]} 10. Bb2 {[%clk
1:24:42]} 10... Qe7 {[%clk 1:21:49]} 11. Re1 {[%clk 1:00:54]} 11... dxc4 {[%clk
1:13:38]} 12. Bxc4 {[%clk 0:58:59]} 12... e5 {[%clk 1:09:18]} 13. Be2 {[%clk
0:55:11]} 13... Bxf3 {[%clk 1:05:32]} 14. Bxf3 {[%clk 0:55:15]} 14... e4 {[%clk
1:04:38]} 15. Be2 {[%clk 0:54:07]} 15... Nd5 16. Rc1 {[%clk 0:36:01]} 16... f5
{[%clk 0:56:40]} 17. Bc4 {[%clk 0:26:08]} 17... Nf6 {[%clk 0:48:56]} 18. a4
{[%clk 0:16:44]} 18... Kh8 {[%clk 0:47:23]} 19. Bxd5 {[%clk 0:09:20]} 19... Nxd5
{[%clk 0:40:59]} 20. Nxd5 {[%clk 0:09:29]} 20... cxd5 {[%clk 0:41:21]} 21. Qe2
{[%clk 0:09:33]} 21... a6 {[%clk 0:40:07]} 22. Kh1 {[%clk 0:06:08]} 22... Qh4
{[%clk 0:36:34]} 23. Qf1 {[%clk 0:00:54]} 23... f4 {[%clk 0:33:06]} 24. exf4
{[%clk 0:01:00]} 24... Qxf4 {[%clk 0:31:51]} 25. g3 {[%clk 0:00:41]} 25... Qxf2
{[%clk 0:31:52]} 26. Qxf2 {[%clk 0:00:42]} 26... Rxf2 {[%clk 0:32:16]} 27. Ba1
{[%clk 0:00:42]} 27... Bxg3 {[%clk 0:31:34]} 28. Rf1 {[%clk 0:01:02]} 28...
Rxf1+ {[%clk 0:29:37]} 29. Rxf1 {[%clk 0:01:25]} 29... e3 {[%clk 0:23:25]} 30.
Bc3 {[%clk 0:01:40]} 30... e2 {[%clk 0:22:35]} 31. Rg1 {[%clk 0:01:35]} 31...
Bh4 {[%clk 0:21:16]} 32. Be1 {[%clk 0:01:43]} 32... Bxe1 {[%clk 0:21:32]} 33.
Rxe1 {[%clk 0:02:07]} 33... Re8 {[%clk 0:21:52]} 34. Kg2 {[%clk 0:02:25]} 34...
Kg8 {[%clk 0:21:53]} 35. Kf3 {[%clk 0:02:38]} 35... Kf7 {[%clk 0:21:59]} 36.
Rxe2 {[%clk 0:02:27]} 36... Rxe2 {[%clk 0:22:23]} 37. Kxe2 {[%clk 0:02:53]}
37... Ke6 {[%clk 0:22:43]} 38. Ke3 {[%clk 0:03:18]} 38... g5 {[%clk 0:22:23]}
39. b4 {[%clk 0:02:43]} 39... b6 {[%clk 0:22:38]} 40. b5 {[%clk 0:02:48]} 40...
axb5 {[%clk 0:22:48]} 41. axb5 {[%clk 0:03:12]} 41... Kf5 {[%clk 0:23:08]} 42.
Kf3 {[%clk 0:03:31]} 42... h5 {[%clk 0:23:29]} 43. Kg3 {[%clk 0:02:14]} 43...
Ke4 {[%clk 0:23:40]} 44. h4 {[%clk 0:02:37]} 44... gxh4+ {[%clk 0:24:03]} 45.
Kxh4 {[%clk 0:03:01]} 45... Kxd4 {[%clk 0:24:28]} 46. Kxh5 {[%clk 0:03:24]}
46... Ke3 {[%clk 0:24:53]} 47. Kg5 {[%clk 0:03:44]} 47... d4 {[%clk 0:25:18]}
48. Kf5 {[%clk 0:04:05]} 48... d3 {[%clk 0:25:43]} 49. Ke5 {[%clk 0:04:31]}
49... d2 {[%clk 0:26:09]} 50. Kd6 {[%clk 0:04:52]} 50... d1=Q+ {[%clk 0:26:34]}
51. Kc6 {[%clk 0:05:07]} 51... Qd4 {[%clk 0:26:55]} 52. Kb7 {[%clk 0:05:29]}
52... Ke4 {[%clk 0:27:16]} 53. Ka7 {[%clk 0:05:49]} 53... Kd5 {[%clk 0:27:38]}
54. Kb7 {[%clk 0:06:11]} 54... Kd6 {[%clk 0:27:59]} 55. Ka7 {[%clk 0:06:25]}
55... Kc7 {[%clk 0:28:23]} 56. Ka8 {[%clk 0:06:39]} 56... Qa4# {[%clk 0:28:48]}
0-1

[Variant "Standard"]
[Site "Europe Echecs"]

[Event "Championnat du monde jeunes U12F"]
[Date "2024.11.15"]
[White "Jordan, Christina"]
[Black "Ordonez Alarcon, Daniela"]
[WhiteElo "1803"]
[BlackElo "1606"]
[Round "1.18"]
[Result "1-0"]
[TimeControl "5400+30"]

1. e4 {[%clk 1:30:57]} 1... e5 {[%clk 1:30:55]} 2. Nf3 {[%clk 1:31:21]} 2... Nc6
{[%clk 1:31:09]} 3. Bb5 {[%clk 1:31:41]} 3... a6 {[%clk 1:31:33]} 4. Ba4 {[%clk
1:32:03]} 4... Nf6 {[%clk 1:31:56]} 5. O-O {[%clk 1:32:22]} 5... b5 {[%clk
1:30:00]} 6. Bb3 {[%clk 1:32:45]} 6... Nxe4 {[%clk 1:23:00]} 7. Re1 {[%clk
1:27:38]} 7... d5 {[%clk 1:10:06]} 8. d3 {[%clk 1:26:56]} 8... Nf6 {[%clk
1:10:17]} 9. Nxe5 {[%clk 1:27:19]} 9... Nxe5 {[%clk 1:10:30]} 10. Rxe5+ {[%clk
1:27:44]} 10... Be6 {[%clk 1:10:56]} 11. Nc3 {[%clk 1:15:33]} 11... Bd6 {[%clk
1:10:38]} 12. Re1 {[%clk 1:15:42]} 12... O-O {[%clk 1:10:47]} 13. Bg5 {[%clk
1:14:16]} 13... c6 {[%clk 1:05:11]} 14. Ne2 {[%clk 1:08:17]} 14... h6 {[%clk
0:57:23]} 15. Bf4 {[%clk 1:03:09]} 15... g5 {[%clk 0:44:16]} 16. Bg3 Bg4 {[%clk
0:38:30]} 17. f3 {[%clk 0:52:48]} 17... Bh5 {[%clk 0:38:52]} 18. Qd2 {[%clk
0:48:30]} 18... Bxg3 {[%clk 0:33:22]} 19. Nxg3 {[%clk 0:48:18]} 19... Qc7 {[%clk
0:33:10]} 20. Qc3 {[%clk 0:46:48]} 20... Qf4 {[%clk 0:31:01]} 21. Qxc6 {[%clk
0:40:50]} 21... Qd4+ {[%clk 0:29:01]} 22. Kh1 {[%clk 0:40:38]} 22... Rfc8 {[%clk
0:28:55]} 23. Qd6 {[%clk 0:39:24]} 23... Qxb2 {[%clk 0:24:05]} 24. Nxh5 {[%clk
0:39:25]} 24... Nxh5 {[%clk 0:24:33]} 25. Qxh6 {[%clk 0:39:41]} 25... Ng7 {[%clk
0:21:36]} 26. Bxd5 {[%clk 0:36:48]} 26... Ra7 {[%clk 0:21:30]} 27. Bb3 {[%clk
0:36:24]} 27... Qc3 {[%clk 0:19:49]} 28. Qxg5 {[%clk 0:35:39]} 28... Qc5 {[%clk
0:19:59]} 29. Re5 {[%clk 0:34:25]} 29... Qf2 {[%clk 0:17:33]} 30. Rae1 {[%clk
0:34:30]} 30... Rac7 {[%clk 0:16:45]} 31. Qg6 {[%clk 0:25:11]} 31... Kf8 {[%clk
0:12:36]} 32. Qxa6 {[%clk 0:25:17]} 32... Rc6 {[%clk 0:07:51]} 33. Qxb5 {[%clk
0:25:16]} 33... Rc5 {[%clk 0:08:16]} 34. Qb4 {[%clk 0:25:19]} 34... Kg8 {[%clk
0:08:26]} 35. R5e2 {[%clk 0:25:18]} 35... Rb5 {[%clk 0:05:20]} 36. Qxb5 {[%clk
0:25:38]} 36... Qa7 {[%clk 0:05:37]} 37. Re7 {[%clk 0:25:37]} 37... Qd4 {[%clk
0:05:33]} 38. Bxf7+ {[%clk 0:25:50]} 38... Kf8 {[%clk 0:05:32]} 39. Qb7 {[%clk
0:25:39]} 39... Qc3 {[%clk 0:04:59]} 40. Bg6 {[%clk 0:25:45]} 40... Kg8 {[%clk
0:04:38]} 41. Re8+ {[%clk 0:25:11]} 1-0

[Variant "Standard"]
[Site "Europe Echecs"]

[Event "Championnat du monde jeunes U12F"]
[Date "2024.11.15"]
[White "Telyuk, Anastasiya"]
[Black "Li, Sophie"]
[WhiteElo "1603"]
[BlackElo "1798"]
[Round "1.19"]
[Result "0-1"]
[TimeControl "5400+30"]

1. e4 {[%clk 1:30:57]} 1... e5 {[%clk 1:30:37]} 2. Nf3 {[%clk 1:31:20]} 2... Nc6
{[%clk 1:30:56]} 3. d4 {[%clk 1:31:39]} 3... exd4 {[%clk 1:31:10]} 4. c3 {[%clk
1:31:59]} 4... dxc3 {[%clk 1:31:17]} 5. Nxc3 {[%clk 1:32:21]} 5... Bb4 {[%clk
1:30:43]} 6. Bc4 {[%clk 1:32:35]} 6... d6 {[%clk 1:30:33]} 7. O-O {[%clk
1:29:11]} 7... Bxc3 {[%clk 1:30:43]} 8. bxc3 {[%clk 1:29:25]} 8... Nf6 {[%clk
1:30:44]} 9. Bg5 {[%clk 1:27:00]} 9... h6 {[%clk 1:30:06]} 10. Bh4 {[%clk
1:26:47]} 10... O-O {[%clk 1:29:50]} 11. Rb1 {[%clk 1:09:47]} 11... Bg4 {[%clk
1:28:38]} 12. Be2 {[%clk 1:01:06]} 12... b6 {[%clk 1:26:48]} 13. Nd4 {[%clk
0:47:22]} 13... Bxe2 {[%clk 1:26:37]} 14. Qxe2 {[%clk 0:45:59]} 14... Ne5 {[%clk
1:25:11]} 15. f4 {[%clk 0:34:00]} 15... Ng6 {[%clk 1:25:00]} 16. Nc6 {[%clk
0:29:01]} 16... Qe8 {[%clk 1:23:32]} 17. Bxf6 {[%clk 0:28:14]} 17... Qxc6 {[%clk
1:23:24]} 18. Bd4 {[%clk 0:28:20]} 18... Rfe8 {[%clk 1:23:16]} 19. Rbe1 {[%clk
0:26:42]} 19... Qd7 20. f5 {[%clk 0:21:42]} 20... Ne5 {[%clk 1:18:18]} 21. f6
{[%clk 0:19:57]} 21... g6 {[%clk 1:18:11]} 22. Qd2 {[%clk 0:17:22]} 22... Kh7
{[%clk 1:17:55]} 23. Rf4 {[%clk 0:13:40]} 23... g5 {[%clk 1:13:33]} 24. Rf5
{[%clk 0:11:01]} 24... Ng6 {[%clk 1:13:03]} 25. Qe2 {[%clk 0:08:04]} 25... Nf4
{[%clk 1:12:00]} 26. Qg4 {[%clk 0:06:50]} 26... h5 {[%clk 1:09:14]} 27. Qd1
{[%clk 0:05:26]} 27... Kh6 {[%clk 1:05:22]} 28. Be3 {[%clk 0:03:21]} 28... Rxe4
{[%clk 1:04:38]} 29. g4 {[%clk 0:00:51]} 29... Nh3+ {[%clk 1:04:33]} 30. Kh1
{[%clk 0:00:36]} 30... Rxg4 {[%clk 1:03:57]} 31. Qd5 {[%clk 0:00:38]} 31... Re8
{[%clk 1:04:08]} 32. Rf3 {[%clk 0:00:32]} 32... Nf4 {[%clk 1:03:39]} 33. Qd2
{[%clk 0:00:33]} 33... Qc6 {[%clk 1:03:38]} 34. Rf1 {[%clk 0:00:39]} 34... Rg2
{[%clk 1:03:41]} 35. Qc1 {[%clk 0:00:31]} 35... Nd3 {[%clk 1:02:44]} 36. Qd1
{[%clk 0:00:32]} 36... Rxe3 {[%clk 1:02:54]} 37. Kxg2 {[%clk 0:00:34]} 37... g4
{[%clk 1:03:11]} 38. Qd2 {[%clk 0:00:34]} 38... Nf4+ {[%clk 1:03:21]} 39. Kg1
{[%clk 0:00:34]} 39... Rxf3 {[%clk 1:03:43]} 40. Rxf3 {[%clk 0:00:54]} 40...
Qxf3 {[%clk 1:04:07]} 0-1

[Variant "Standard"]
[Site "Europe Echecs"]

[Event "Championnat du monde jeunes U12F"]
[Date "2024.11.15"]
[White "Rzadkowska, Kaja"]
[Black "Chen, Pin-I"]
[WhiteElo "1798"]
[BlackElo "1601"]
[Round "1.20"]
[Result "1-0"]
[TimeControl "5400+30"]

1. e4 {[%clk 1:30:59]} 1... c6 {[%clk 1:30:55]} 2. d4 {[%clk 1:31:24]} 2... d5
{[%clk 1:31:20]} 3. Nd2 {[%clk 1:31:51]} 3... dxe4 {[%clk 1:31:39]} 4. Nxe4
{[%clk 1:32:14]} 4... Nf6 {[%clk 1:32:02]} 5. Nxf6+ {[%clk 1:32:39]} 5... exf6
{[%clk 1:31:57]} 6. c3 {[%clk 1:33:04]} 6... Bd6 {[%clk 1:32:21]} 7. Bd3 {[%clk
1:33:27]} 7... O-O {[%clk 1:32:29]} 8. Qc2 {[%clk 1:33:51]} 8... Re8+ {[%clk
1:32:53]} 9. Ne2 {[%clk 1:34:16]} 9... h5 {[%clk 1:33:09]} 10. Be3 {[%clk
1:34:40]} 10... h4 {[%clk 1:30:58]} 11. O-O-O {[%clk 1:33:41]} 11... Nd7 {[%clk
1:30:47]} 12. Kb1 {[%clk 1:31:52]} 12... Nf8 {[%clk 1:30:25]} 13. h3 {[%clk
1:28:37]} 13... Be6 {[%clk 1:26:58]} 14. Rhg1 {[%clk 1:21:06]} 14... a5 {[%clk
1:06:07]} 15. g3 {[%clk 1:15:54]} 15... hxg3 {[%clk 1:06:02]} 16. Nxg3 {[%clk
1:14:51]} 16... a4 {[%clk 1:02:12]} 17. Nh5 {[%clk 1:10:29]} 17... g5 {[%clk
0:44:49]} 18. Nxf6+ {[%clk 1:04:56]} 18... Qxf6 {[%clk 0:41:45]} 19. Rxg5+ Ng6
{[%clk 0:25:33]} 20. Bxg6 {[%clk 0:59:10]} 20... Kf8 {[%clk 0:20:50]} 21. Bh7
{[%clk 0:54:21]} 21... Ke7 {[%clk 0:12:13]} 22. Rgg1 {[%clk 0:45:47]} 22... Bf4
{[%clk 0:09:00]} 23. c4 {[%clk 0:38:34]} 23... Red8 {[%clk 0:07:03]} 24. Qd2
{[%clk 0:32:05]} 24... Bxe3 {[%clk 0:06:06]} 25. Qb4+ {[%clk 0:24:39]} 25... Kd7
{[%clk 0:04:11]} 26. Qxb7+ {[%clk 0:23:26]} 26... Kd6 {[%clk 0:04:33]} 27. c5+
{[%clk 0:15:36]} 27... Kd5 {[%clk 0:04:56]} 28. fxe3 {[%clk 0:15:00]} 28... Bf5+
{[%clk 0:04:55]} 29. e4+ {[%clk 0:14:55]} 29... Bxe4+ {[%clk 0:05:03]} 30. Bxe4+
{[%clk 0:15:23]} 30... Kxe4 {[%clk 0:05:19]} 31. Rge1+ {[%clk 0:15:01]} 31...
Kd5 {[%clk 0:05:30]} 32. b3 {[%clk 0:11:25]} 32... Qf5+ {[%clk 0:05:16]} 33. Ka1
{[%clk 0:11:27]} 33... Re8 {[%clk 0:05:33]} 34. Re5+ {[%clk 0:09:25]} 34... Rxe5
{[%clk 0:05:36]} 35. dxe5+ {[%clk 0:09:54]} 35... Kxc5 {[%clk 0:05:39]} 36. b4+
{[%clk 0:08:56]} 36... Kc4 {[%clk 0:06:00]} 37. Qxc6+ {[%clk 0:09:14]} 37...
Kxb4 {[%clk 0:06:23]} 38. Rd4+ {[%clk 0:07:36]} 38... Ka3 {[%clk 0:06:29]} 39.
Qc1# {[%clk 0:07:50]} 1-0

[Variant "Standard"]
[Site "Europe Echecs"]